[Event "Betsys MČR v online bleskovém šachu 2021"]
[Site "Chess.com"]
[Date "2021.04.17"]
[Round "12"]
[White "kecalk"]
[Black "fortale"]
[Result "0-1"]
[WhiteElo "2125"]
[BlackElo "2309"]
[TimeControl "180+1"]
[EndTime "11:01:41 PDT"]
[Termination "Uživatel fortale zvítězil po vzdání soupeře"]

1. c4 {[%clk 0:03:00.9]} 1... Nf6 {[%clk 0:02:58.4]} 2. Nf3 {[%clk 0:03:00.8]}
2... g6 {[%clk 0:02:57.6]} 3. Nc3 {[%clk 0:03:00.7]} 3... Bg7 {[%clk 0:02:57.2]}
4. e4 {[%clk 0:03:00.8]} 4... d6 {[%clk 0:02:54.4]} 5. d4 {[%clk 0:03:01.6]}
5... O-O {[%clk 0:02:54.2]} 6. h3 {[%clk 0:03:01.7]} 6... e5 {[%clk 0:02:50]} 7.
d5 {[%clk 0:03:01.3]} 7... a5 {[%clk 0:02:49.8]} 8. Be3 {[%clk 0:03:00.2]} 8...
Nfd7 {[%clk 0:02:40.9]} 9. g4 {[%clk 0:02:59]} 9... f5 {[%clk 0:02:40.5]} 10.
gxf5 {[%clk 0:02:58.2]} 10... gxf5 {[%clk 0:02:40.6]} 11. exf5 {[%clk
0:02:58.3]} 11... Nb6 {[%clk 0:02:35.4]} 12. Rg1 {[%clk 0:02:43]} 12... Kh8
{[%clk 0:02:27.8]} 13. Bd3 {[%clk 0:02:41.2]} 13... Bxf5 {[%clk 0:02:25.9]} 14.
Bxf5 {[%clk 0:02:40.8]} 14... Rxf5 {[%clk 0:02:25.5]} 15. Ng5 {[%clk 0:02:40.4]}
15... Bh6 {[%clk 0:01:46]} 16. Ne6 {[%clk 0:02:27.1]} 16... Qh4 {[%clk
0:01:42.3]} 17. Qg4 {[%clk 0:02:19.8]} 17... Qxg4 {[%clk 0:01:31.5]} 18. hxg4
{[%clk 0:02:20.7]} 18... Bxe3 {[%clk 0:01:25.7]} 19. gxf5 {[%clk 0:02:19.7]}
19... Bh6 {[%clk 0:01:23.3]} 20. f6 {[%clk 0:02:16.1]} 20... N8d7 {[%clk
0:01:19.8]} 21. Nb5 {[%clk 0:01:57.5]} 21... Nxf6 {[%clk 0:01:13.1]} 22. Nbxc7
{[%clk 0:01:53.5]} 22... Rc8 {[%clk 0:01:12.9]} 23. b3 {[%clk 0:01:52.4]} 23...
Nbd7 {[%clk 0:00:52.9]} 24. Ke2 {[%clk 0:01:47.1]} 24... e4 {[%clk 0:00:51.6]}
25. Rh1 {[%clk 0:01:35.5]} 25... Ng4 {[%clk 0:00:51.1]} 26. Rag1 {[%clk
0:01:33.6]} 26... Nde5 {[%clk 0:00:51.4]} 27. Nb5 {[%clk 0:01:24.6]} 27... Bf8
{[%clk 0:00:41.2]} 28. Rh4 {[%clk 0:01:18.3]} 28... Nf6 {[%clk 0:00:37.3]} 29.
Rf4 {[%clk 0:01:03.8]} 29... Be7 {[%clk 0:00:37.3]} 30. Rg7 {[%clk 0:01:02.1]}
30... Ng8 {[%clk 0:00:32.6]} 31. Rxe4 {[%clk 0:00:43.8]} 31... a4 {[%clk
0:00:31.9]} 32. Rg1 {[%clk 0:00:34.2]} 32... axb3 {[%clk 0:00:31.3]} 33. axb3
{[%clk 0:00:34]} 33... Ra8 {[%clk 0:00:29.6]} 34. Ng7 {[%clk 0:00:28.7]} 34...
Nf6 {[%clk 0:00:27.8]} 35. Rh4 {[%clk 0:00:22.1]} 35... Ra2+ {[%clk 0:00:27.6]}
36. Ke3 {[%clk 0:00:20.3]} 36... Nxd5+ {[%clk 0:00:26.2]} 37. cxd5 {[%clk
0:00:19.3]} 37... Bxh4 {[%clk 0:00:26.1]} 38. Rg2 {[%clk 0:00:15.3]} 38... Bxf2+
{[%clk 0:00:24.6]} 39. Rxf2 {[%clk 0:00:15]} 39... Ng4+ {[%clk 0:00:24.6]} 40.
Kf3 {[%clk 0:00:13.5]} 40... Rxf2+ {[%clk 0:00:18.2]} 41. Kxg4 {[%clk
0:00:13.4]} 41... Kxg7 {[%clk 0:00:18.6]} 42. Nxd6 {[%clk 0:00:14.3]} 42... Rd2
{[%clk 0:00:17.2]} 43. Nf5+ {[%clk 0:00:13.6]} 43... Kf6 {[%clk 0:00:17]} 44. d6
{[%clk 0:00:13.7]} 44... h5+ {[%clk 0:00:15.3]} 45. Kf4 {[%clk 0:00:11.9]} 45...
Rf2+ {[%clk 0:00:14.7]} 46. Ke4 {[%clk 0:00:11.7]} 46... Rxf5 {[%clk 0:00:13.3]}
47. d7 {[%clk 0:00:12.1]} 47... Ke7 {[%clk 0:00:13.5]} 48. Kxf5 {[%clk
0:00:10.8]} 48... Kxd7 {[%clk 0:00:13.8]} 49. Kg5 {[%clk 0:00:11.7]} 49... Kc6
{[%clk 0:00:14.3]} 50. Kxh5 {[%clk 0:00:12.2]} 50... Kb5 {[%clk 0:00:15]} 51.
Kg4 {[%clk 0:00:13.1]} 51... Kb4 {[%clk 0:00:15.7]} 0-1

[Event "Betsys MČR v online bleskovém šachu 2021"]
[Site "Chess.com"]
[Date "2021.04.17"]
[Round "12"]
[White "Marcus_Aurelius_CZ"]
[Black "pa9p"]
[Result "0-1"]
[WhiteElo "1420"]
[BlackElo "1766"]
[TimeControl "180+1"]
[EndTime "11:01:41 PDT"]
[Termination "Uživatel pa9p zvítězil matem"]

1. e4 {[%clk 0:03:00.9]} 1... d6 {[%clk 0:02:59.9]} 2. d4 {[%clk 0:03:00]} 2...
g6 {[%clk 0:02:57.7]} 3. Nf3 {[%clk 0:02:59.8]} 3... Bg7 {[%clk 0:02:52.1]} 4.
Nc3 {[%clk 0:03:00]} 4... Nf6 {[%clk 0:02:51]} 5. Bd3 {[%clk 0:02:57.2]} 5...
O-O {[%clk 0:02:49.4]} 6. O-O {[%clk 0:02:56.4]} 6... c5 {[%clk 0:02:47.8]} 7.
dxc5 {[%clk 0:02:54.7]} 7... dxc5 {[%clk 0:02:47.8]} 8. e5 {[%clk 0:02:54.5]}
8... Nd5 {[%clk 0:02:47.1]} 9. Nxd5 {[%clk 0:02:53.4]} 9... Qxd5 {[%clk
0:02:46.6]} 10. Bf4 {[%clk 0:02:48.3]} 10... Bg4 {[%clk 0:02:44.8]} 11. Be2
{[%clk 0:02:43.8]} 11... Qc6 {[%clk 0:02:35.2]} 12. h3 {[%clk 0:02:40.1]} 12...
Be6 {[%clk 0:02:33]} 13. Qd3 {[%clk 0:02:14.9]} 13... Na6 {[%clk 0:02:21.6]} 14.
a3 {[%clk 0:02:12.4]} 14... Nc7 {[%clk 0:02:21.2]} 15. Qc3 {[%clk 0:02:10.4]}
15... Nd5 {[%clk 0:02:19.5]} 16. Qd2 {[%clk 0:02:09.3]} 16... Rad8 {[%clk
0:02:18]} 17. Rad1 {[%clk 0:01:56.4]} 17... a6 {[%clk 0:02:09.1]} 18. Bh6 {[%clk
0:01:51.1]} 18... Qa4 {[%clk 0:01:34.6]} 19. c4 {[%clk 0:01:31]} 19... Nf6
{[%clk 0:01:11.9]} 20. Qe3 {[%clk 0:01:18.8]} 20... Nd7 {[%clk 0:01:02.9]} 21.
Bxg7 {[%clk 0:01:16.6]} 21... Kxg7 {[%clk 0:01:02.7]} 22. Rd2 {[%clk 0:01:12.1]}
22... Bxc4 {[%clk 0:00:57.9]} 23. b3 {[%clk 0:01:05.5]} 23... Qxb3 {[%clk
0:00:52.7]} 24. Bxc4 {[%clk 0:00:59.1]} 24... Qxc4 {[%clk 0:00:51.2]} 25. Rfd1
{[%clk 0:00:56]} 25... Qe6 {[%clk 0:00:50.5]} 26. Ng5 {[%clk 0:00:47.8]} 26...
Qc6 {[%clk 0:00:39.9]} 27. Qc3 {[%clk 0:00:44.2]} 27... e6 {[%clk 0:00:35.7]}
28. Qg3 {[%clk 0:00:35.6]} 28... Qc7 {[%clk 0:00:34.9]} 29. Qh4 {[%clk
0:00:29.4]} 29... h6 {[%clk 0:00:32.4]} 30. Ne4 {[%clk 0:00:20.3]} 30... c4
{[%clk 0:00:24.9]} 31. Nf6 {[%clk 0:00:19.7]} 31... g5 {[%clk 0:00:13.7]} 32.
Qd4 {[%clk 0:00:12.8]} 32... Qxe5 {[%clk 0:00:11.1]} 33. Nxd7 {[%clk 0:00:09.6]}
33... Qxd4 {[%clk 0:00:09.3]} 34. Rxd4 {[%clk 0:00:09.6]} 34... Rfe8 {[%clk
0:00:09.2]} 35. Ne5 {[%clk 0:00:08.7]} 35... Rxd4 {[%clk 0:00:08]} 36. Rxd4
{[%clk 0:00:07.2]} 36... b5 {[%clk 0:00:08.9]} 37. Rd1 {[%clk 0:00:05.3]} 37...
Rc8 {[%clk 0:00:08.3]} 38. Nf3 {[%clk 0:00:05.3]} 38... f6 {[%clk 0:00:07]} 39.
Rc1 {[%clk 0:00:05.2]} 39... e5 {[%clk 0:00:07.2]} 40. Kf1 {[%clk 0:00:05.3]}
40... Kf7 {[%clk 0:00:07.7]} 41. Ke2 {[%clk 0:00:04.9]} 41... Ke6 {[%clk
0:00:08.6]} 42. Ke3 {[%clk 0:00:05.1]} 42... f5 {[%clk 0:00:09]} 43. Ne1 {[%clk
0:00:05.3]} 43... f4+ {[%clk 0:00:08]} 44. Ke4 {[%clk 0:00:03.7]} 44... Rd8
{[%clk 0:00:06.9]} 45. Nc2 {[%clk 0:00:04.1]} 45... Rd2 {[%clk 0:00:05.7]} 46.
Kf3 {[%clk 0:00:03.5]} 46... Kf5 {[%clk 0:00:04.7]} 47. Nb4 {[%clk 0:00:04]}
47... e4# {[%clk 0:00:05]} 0-1

[Event "Betsys MČR v online bleskovém šachu 2021"]
[Site "Chess.com"]
[Date "2021.04.17"]
[Round "12"]
[White "Cenisuh"]
[Black "RunningPawnz88"]
[Result "1-0"]
[WhiteElo "1595"]
[BlackElo "1345"]
[TimeControl "180+1"]
[EndTime "11:01:41 PDT"]
[Termination "Uživatel Cenisuh zvítězil na čas"]

1. d4 {[%clk 0:03:00.9]} 1... Nf6 {[%clk 0:02:58.9]} 2. c4 {[%clk 0:03:01.3]}
2... e6 {[%clk 0:02:59]} 3. Nf3 {[%clk 0:03:01.4]} 3... c5 {[%clk 0:02:56.5]} 4.
Nc3 {[%clk 0:02:58.7]} 4... d5 {[%clk 0:02:55.7]} 5. cxd5 {[%clk 0:02:58.1]}
5... exd5 {[%clk 0:02:55.9]} 6. e3 {[%clk 0:02:57]} 6... Bg4 {[%clk 0:02:53.2]}
7. h3 {[%clk 0:02:54.6]} 7... Bh5 {[%clk 0:02:52.5]} 8. Be2 {[%clk 0:02:50.1]}
8... Bg6 {[%clk 0:02:52]} 9. O-O {[%clk 0:02:43.5]} 9... Nc6 {[%clk 0:02:51.2]}
10. b3 {[%clk 0:02:34.9]} 10... cxd4 {[%clk 0:02:46.5]} 11. Nxd4 {[%clk
0:02:32.6]} 11... Nb4 {[%clk 0:02:36.9]} 12. a3 {[%clk 0:02:18.4]} 12... Na6
{[%clk 0:02:35.9]} 13. Bb2 {[%clk 0:02:17.1]} 13... Bc5 {[%clk 0:02:32]} 14.
Bb5+ {[%clk 0:02:08.1]} 14... Nd7 {[%clk 0:02:26.7]} 15. Nxd5 {[%clk 0:02:01.6]}
15... O-O {[%clk 0:02:19.5]} 16. Nf4 {[%clk 0:02:01.6]} 16... Bxd4 {[%clk
0:02:12.1]} 17. Qxd4 {[%clk 0:01:56.8]} 17... Nf6 {[%clk 0:01:58.5]} 18. Rfd1
{[%clk 0:01:30.6]} 18... Qxd4 {[%clk 0:01:53.5]} 19. Bxd4 {[%clk 0:01:24.4]}
19... Nc7 {[%clk 0:01:43.7]} 20. Be2 {[%clk 0:01:15.8]} 20... Ne4 {[%clk
0:01:38.1]} 21. Rdc1 {[%clk 0:01:09.4]} 21... Ne6 {[%clk 0:01:31.1]} 22. Nxg6
{[%clk 0:01:08.7]} 22... fxg6 {[%clk 0:01:29.4]} 23. Bc4 {[%clk 0:01:05]} 23...
Rae8 {[%clk 0:01:15.5]} 24. Bd5 {[%clk 0:01:04.1]} 24... Nxf2 {[%clk 0:01:02]}
25. Bxa7 {[%clk 0:00:53.2]} 25... Nd3 {[%clk 0:00:57.2]} 26. Rc7 {[%clk
0:00:43.4]} 26... Kh8 {[%clk 0:00:50.8]} 27. Bxe6 {[%clk 0:00:42.6]} 27... Rxe6
{[%clk 0:00:49.4]} 28. Rxb7 {[%clk 0:00:42.6]} 28... Ra6 {[%clk 0:00:35.9]} 29.
a4 {[%clk 0:00:38.9]} 29... Nc5 {[%clk 0:00:30.2]} 30. Bxc5 {[%clk 0:00:38.6]}
30... Rc8 {[%clk 0:00:27.7]} 31. b4 {[%clk 0:00:38]} 31... h5 {[%clk 0:00:23.1]}
32. a5 {[%clk 0:00:36.3]} 32... Re6 {[%clk 0:00:21.8]} 33. Rd1 {[%clk
0:00:35.5]} 33... Rf8 {[%clk 0:00:16.9]} 34. Rdd7 {[%clk 0:00:35.1]} 34... Rg8
{[%clk 0:00:14.9]} 35. Kh2 {[%clk 0:00:32.7]} 35... Re5 {[%clk 0:00:13.8]} 36.
a6 {[%clk 0:00:31.1]} 36... g5 {[%clk 0:00:13.3]} 37. a7 {[%clk 0:00:30.2]}
37... Ree8 {[%clk 0:00:13.2]} 38. b5 {[%clk 0:00:25.4]} 38... g4 {[%clk
0:00:13.5]} 39. hxg4 {[%clk 0:00:24.5]} 39... hxg4 {[%clk 0:00:13.9]} 40. Rd5
{[%clk 0:00:23.7]} 40... g5 {[%clk 0:00:11.6]} 41. Rd6 {[%clk 0:00:23.2]} 41...
Rg7 {[%clk 0:00:06.9]} 42. Rh6+ {[%clk 0:00:22.7]} 42... Kg8 {[%clk 0:00:06.2]}
43. Rxg7+ {[%clk 0:00:20]} 43... Kxg7 {[%clk 0:00:05.7]} 44. Rb6 {[%clk
0:00:19.3]} 44... Rh8+ {[%clk 0:00:04.6]} 45. Kg1 {[%clk 0:00:18.2]} 45... g3
{[%clk 0:00:05]} 46. Kf1 {[%clk 0:00:18]} 46... Rd8 {[%clk 0:00:05.1]} 47. Rb7+
{[%clk 0:00:16.1]} 47... Kg6 {[%clk 0:00:03.6]} 48. Rb8 {[%clk 0:00:14.3]} 48...
Kf5 {[%clk 0:00:03.9]} 49. a8=Q {[%clk 0:00:13.5]} 49... Rxb8 {[%clk 0:00:02.5]}
50. Qxb8 {[%clk 0:00:13.5]} 1-0

[Event "Betsys MČR v online bleskovém šachu 2021"]
[Site "Chess.com"]
[Date "2021.04.17"]
[Round "12"]
[White "handlovskyjachym"]
[Black "MiroslavBucek"]
[Result "0-1"]
[WhiteElo "1368"]
[BlackElo "1601"]
[TimeControl "180+1"]
[EndTime "11:01:42 PDT"]
[Termination "Uživatel MiroslavBucek zvítězil na čas"]

1. e4 {[%clk 0:03:00.9]} 1... e5 {[%clk 0:02:59.8]} 2. Nf3 {[%clk 0:03:00.4]}
2... Nc6 {[%clk 0:02:59.2]} 3. Bc4 {[%clk 0:02:59.9]} 3... Nf6 {[%clk
0:02:59.1]} 4. d3 {[%clk 0:02:59.7]} 4... Be7 {[%clk 0:02:56.6]} 5. Nc3 {[%clk
0:02:59.3]} 5... O-O {[%clk 0:02:55.7]} 6. Be3 {[%clk 0:02:59]} 6... d6 {[%clk
0:02:55.5]} 7. O-O {[%clk 0:02:59]} 7... Na5 {[%clk 0:02:55.5]} 8. Bd5 {[%clk
0:02:53.7]} 8... c6 {[%clk 0:02:52.4]} 9. Bb3 {[%clk 0:02:51.8]} 9... Bg4 {[%clk
0:02:50.3]} 10. h3 {[%clk 0:02:49.7]} 10... Bh5 {[%clk 0:02:50.2]} 11. Kh1
{[%clk 0:02:31.4]} 11... a6 {[%clk 0:02:44.5]} 12. Rg1 {[%clk 0:02:26.4]} 12...
Nxb3 {[%clk 0:02:30.4]} 13. axb3 {[%clk 0:02:25.2]} 13... d5 {[%clk 0:02:30.7]}
14. exd5 {[%clk 0:02:20.4]} 14... cxd5 {[%clk 0:02:30.7]} 15. g4 {[%clk
0:02:15.6]} 15... Bg6 {[%clk 0:02:07.2]} 16. Nxe5 {[%clk 0:02:15.3]} 16... d4
{[%clk 0:01:52.6]} 17. g5 {[%clk 0:01:28.2]} 17... Ne8 {[%clk 0:01:51.9]} 18. h4
{[%clk 0:00:41.9]} 18... dxc3 {[%clk 0:01:41.5]} 19. h5 {[%clk 0:00:41.3]} 19...
Qd5+ {[%clk 0:01:31.8]} 20. Rg2 {[%clk 0:00:24.6]} 20... Bf5 {[%clk 0:01:20.9]}
21. Ng4 {[%clk 0:00:20.3]} 21... Bxg4 {[%clk 0:01:01]} 22. Qxg4 {[%clk
0:00:18.2]} 22... Nd6 {[%clk 0:00:58.9]} 23. h6 {[%clk 0:00:16.9]} 23... g6
{[%clk 0:00:57.9]} 24. Bd4 {[%clk 0:00:14.2]} 24... Nf5 {[%clk 0:00:52.6]} 25.
Qf4 {[%clk 0:00:11.7]} 25... Qxd4 {[%clk 0:00:44.8]} 26. Qf3 {[%clk 0:00:08]}
26... b5 {[%clk 0:00:33.3]} 27. Re1 {[%clk 0:00:07.7]} 27... Rfe8 {[%clk
0:00:32.6]} 28. Rg4 {[%clk 0:00:05.1]} 28... Qd6 {[%clk 0:00:28.2]} 29. Qe2
{[%clk 0:00:04]} 29... Nd4 {[%clk 0:00:20.3]} 30. Qd1 {[%clk 0:00:03.7]} 30...
Rad8 {[%clk 0:00:17.1]} 31. bxc3 {[%clk 0:00:03.4]} 31... Nf5 {[%clk 0:00:14.9]}
32. Qf3 {[%clk 0:00:02.5]} 32... Qd5 {[%clk 0:00:13.4]} 33. Qxd5 {[%clk
0:00:02.1]} 33... Rxd5 {[%clk 0:00:13.3]} 34. Rg2 {[%clk 0:00:01.9]} 34... Nh4
{[%clk 0:00:11.1]} 35. Rh2 {[%clk 0:00:01.6]} 35... Nf3 {[%clk 0:00:11.1]} 36.
Rg1 {[%clk 0:00:01.6]} 36... Nxh2 {[%clk 0:00:11.2]} 37. Kxh2 {[%clk 0:00:02.1]}
37... Rf5 {[%clk 0:00:11.4]} 38. Rg2 {[%clk 0:00:02.5]} 38... Bxg5 {[%clk
0:00:11.4]} 39. Kg1 {[%clk 0:00:03.1]} 39... Bd2 {[%clk 0:00:11.4]} 40. Kh1
{[%clk 0:00:03.5]} 40... Bxc3 {[%clk 0:00:11.7]} 41. Kh2 {[%clk 0:00:03.9]}
41... Re2 {[%clk 0:00:11.2]} 42. Kg1 {[%clk 0:00:03.7]} 42... Rexf2 {[%clk
0:00:11.5]} 43. Rxf2 {[%clk 0:00:03.3]} 43... Rxf2 {[%clk 0:00:11.6]} 44. Kxf2
{[%clk 0:00:03.7]} 44... f5 {[%clk 0:00:11.9]} 45. Ke3 {[%clk 0:00:03.7]} 45...
Kf7 {[%clk 0:00:12.4]} 46. d4 {[%clk 0:00:03.5]} 46... Ke6 {[%clk 0:00:12.7]}
47. Kd3 {[%clk 0:00:02.5]} 47... Bb2 {[%clk 0:00:12.3]} 48. c4 {[%clk 0:00:02]}
48... g5 {[%clk 0:00:11.4]} 49. c5 {[%clk 0:00:01.7]} 49... Kd5 {[%clk
0:00:11.6]} 0-1

[Event "Betsys MČR v online bleskovém šachu 2021"]
[Site "Chess.com"]
[Date "2021.04.17"]
[Round "12"]
[White "AJedlicka"]
[Black "Eliska0107"]
[Result "1-0"]
[WhiteElo "2201"]
[BlackElo "2043"]
[TimeControl "180+1"]
[EndTime "11:01:44 PDT"]
[Termination "Uživatel AJedlicka zvítězil na čas"]

1. d4 {[%clk 0:03:00.9]} 1... f5 {[%clk 0:02:59.3]} 2. g3 {[%clk 0:03:00]} 2...
Nf6 {[%clk 0:02:59]} 3. Bg2 {[%clk 0:02:59.9]} 3... e6 {[%clk 0:02:59.1]} 4. Nf3
{[%clk 0:02:59.7]} 4... d5 {[%clk 0:02:58.7]} 5. O-O {[%clk 0:02:59.1]} 5... c6
{[%clk 0:02:58.8]} 6. c4 {[%clk 0:02:58.8]} 6... Bd6 {[%clk 0:02:56.2]} 7. b3
{[%clk 0:02:58]} 7... Qe7 {[%clk 0:02:55.2]} 8. a4 {[%clk 0:02:54.8]} 8... O-O
{[%clk 0:02:54.9]} 9. Ba3 {[%clk 0:02:51.5]} 9... Nbd7 {[%clk 0:02:54.9]} 10.
Bxd6 {[%clk 0:02:49.9]} 10... Qxd6 {[%clk 0:02:54.7]} 11. Nbd2 {[%clk
0:02:48.7]} 11... b6 {[%clk 0:02:48]} 12. Rc1 {[%clk 0:02:45.6]} 12... c5 {[%clk
0:02:42.8]} 13. cxd5 {[%clk 0:02:34.6]} 13... exd5 {[%clk 0:02:41.8]} 14. dxc5
{[%clk 0:02:34.1]} 14... bxc5 {[%clk 0:02:41.4]} 15. Nc4 {[%clk 0:02:31.6]}
15... Qe6 {[%clk 0:02:33.8]} 16. Ng5 {[%clk 0:02:26.7]} 16... Qc6 {[%clk
0:02:25.3]} 17. Na5 {[%clk 0:02:20.7]} 17... Qd6 {[%clk 0:02:17.5]} 18. Nc4
{[%clk 0:02:10.1]} 18... Qc6 {[%clk 0:02:16.8]} 19. b4 {[%clk 0:02:01.9]} 19...
h6 {[%clk 0:01:28.3]} 20. b5 {[%clk 0:02:01]} 20... Qb7 {[%clk 0:01:18.5]} 21.
Ne6 {[%clk 0:01:55.6]} 21... Re8 {[%clk 0:01:09.9]} 22. Nf4 {[%clk 0:01:52.1]}
22... Nb6 {[%clk 0:01:02]} 23. Nd6 {[%clk 0:01:51.2]} 23... Qe7 {[%clk 0:01:01]}
24. Nxe8 {[%clk 0:01:50.7]} 24... Qxe8 {[%clk 0:01:00.6]} 25. Rxc5 {[%clk
0:01:49.3]} 25... Bb7 {[%clk 0:00:49.7]} 26. a5 {[%clk 0:01:47.6]} 26... Nbd7
{[%clk 0:00:46.2]} 27. Rxd5 {[%clk 0:01:43.1]} 27... Bxd5 {[%clk 0:00:37.1]} 28.
Bxd5+ {[%clk 0:01:34.8]} 28... Nxd5 {[%clk 0:00:35.3]} 29. Qxd5+ {[%clk
0:01:34.2]} 29... Kh8 {[%clk 0:00:30.4]} 30. Qxf5 {[%clk 0:01:32.8]} 30... Rb8
{[%clk 0:00:20.7]} 31. Ng6+ {[%clk 0:01:24.9]} 31... Kg8 {[%clk 0:00:20.1]} 32.
Rd1 {[%clk 0:01:13.8]} 32... Nf6 {[%clk 0:00:20.3]} 33. Nf4 {[%clk 0:01:00.1]}
33... Rxb5 {[%clk 0:00:18]} 34. Qd3 {[%clk 0:00:46.2]} 34... Rxa5 {[%clk
0:00:17.4]} 35. Qc4+ {[%clk 0:00:46.1]} 35... Qf7 {[%clk 0:00:16.3]} 36. Qc8+
{[%clk 0:00:44.5]} 36... Kh7 {[%clk 0:00:15.2]} 37. Qc2+ {[%clk 0:00:43.4]}
37... g6 {[%clk 0:00:14.7]} 38. h4 {[%clk 0:00:36.9]} 38... Re5 {[%clk 0:00:13]}
39. Qc8 {[%clk 0:00:34.7]} 39... Kg7 {[%clk 0:00:12.5]} 40. Qb8 {[%clk
0:00:32.8]} 40... Re7 {[%clk 0:00:12]} 41. Rd8 {[%clk 0:00:31.4]} 41... g5
{[%clk 0:00:11.6]} 42. hxg5 {[%clk 0:00:30.8]} 42... hxg5 {[%clk 0:00:11.7]} 43.
Nd3 {[%clk 0:00:29.4]} 43... Rxe2 {[%clk 0:00:10.7]} 44. Qd6 {[%clk 0:00:17.8]}
44... Re7 {[%clk 0:00:10.5]} 45. Qd4 {[%clk 0:00:16.9]} 45... Rd7 {[%clk
0:00:10.5]} 46. Rxd7 {[%clk 0:00:15.7]} 46... Qxd7 {[%clk 0:00:10.6]} 47. Qe3
{[%clk 0:00:15.6]} 47... a5 {[%clk 0:00:09.8]} 48. Qxg5+ {[%clk 0:00:15.2]}
48... Kf7 {[%clk 0:00:09.3]} 49. Ne5+ {[%clk 0:00:15]} 49... Ke7 {[%clk
0:00:09.5]} 50. Nxd7 {[%clk 0:00:14.8]} 50... Kxd7 {[%clk 0:00:09.5]} 51. Qxf6
{[%clk 0:00:14.6]} 1-0

[Event "Betsys MČR v online bleskovém šachu 2021"]
[Site "Chess.com"]
[Date "2021.04.17"]
[Round "12"]
[White "zarathutra"]
[Black "Patriktesko"]
[Result "1-0"]
[WhiteElo "1830"]
[BlackElo "2015"]
[TimeControl "180+1"]
[EndTime "11:01:44 PDT"]
[Termination "Uživatel zarathutra zvítězil matem"]

1. d4 {[%clk 0:03:00.9]} 1... d5 {[%clk 0:03:00.2]} 2. c4 {[%clk 0:03:01.1]}
2... dxc4 {[%clk 0:03:00]} 3. e3 {[%clk 0:03:00.9]} 3... Be6 {[%clk 0:02:59.6]}
4. Nc3 {[%clk 0:02:53.9]} 4... c6 {[%clk 0:02:57.5]} 5. Nf3 {[%clk 0:02:53.2]}
5... Nf6 {[%clk 0:02:56.4]} 6. a4 {[%clk 0:02:52.3]} 6... g6 {[%clk 0:02:56.3]}
7. Ne5 {[%clk 0:02:51.9]} 7... Bg7 {[%clk 0:02:55.8]} 8. Bxc4 {[%clk 0:02:51]}
8... Bxc4 {[%clk 0:02:55.4]} 9. Nxc4 {[%clk 0:02:51.1]} 9... O-O {[%clk
0:02:56.2]} 10. O-O {[%clk 0:02:50.6]} 10... Nbd7 {[%clk 0:02:56.4]} 11. b4
{[%clk 0:02:46.7]} 11... Nb6 {[%clk 0:02:56.1]} 12. Qd3 {[%clk 0:02:42.2]} 12...
e6 {[%clk 0:02:53.2]} 13. e4 {[%clk 0:02:33.8]} 13... Nh5 {[%clk 0:02:37.2]} 14.
e5 {[%clk 0:02:29.4]} 14... Qh4 {[%clk 0:02:27.2]} 15. Nd6 {[%clk 0:02:20.3]}
15... Rab8 {[%clk 0:02:12.9]} 16. Nce4 {[%clk 0:02:18.6]} 16... Nd5 {[%clk
0:02:04.2]} 17. Bg5 {[%clk 0:01:58.4]} 17... Nhf4 {[%clk 0:01:50.8]} 18. Qf3
{[%clk 0:01:49.3]} 18... Qh5 {[%clk 0:01:39]} 19. Qxh5 {[%clk 0:01:30.1]} 19...
Nxh5 {[%clk 0:01:34.8]} 20. Nc5 {[%clk 0:01:23.2]} 20... f6 {[%clk 0:01:15.2]}
21. exf6 {[%clk 0:01:18.2]} 21... Bxf6 {[%clk 0:01:15]} 22. Bd2 {[%clk
0:01:05.3]} 22... Bxd4 {[%clk 0:01:09.6]} 23. Nd7 {[%clk 0:00:59.7]} 23... Bxa1
{[%clk 0:01:07.6]} 24. Nxb8 {[%clk 0:00:46.8]} 24... Rxb8 {[%clk 0:01:06.2]} 25.
Rxa1 {[%clk 0:00:44.9]} 25... Nhf6 {[%clk 0:01:04.9]} 26. Re1 {[%clk 0:00:39.7]}
26... Nc7 {[%clk 0:00:54.5]} 27. Bf4 {[%clk 0:00:37.2]} 27... Nfd5 {[%clk
0:00:49.4]} 28. Bd2 {[%clk 0:00:28]} 28... b5 {[%clk 0:00:32.9]} 29. a5 {[%clk
0:00:21.1]} 29... Kf8 {[%clk 0:00:23]} 30. Rc1 {[%clk 0:00:19.8]} 30... Ke7
{[%clk 0:00:19.9]} 31. Ne4 {[%clk 0:00:17.5]} 31... Nf6 {[%clk 0:00:16.1]} 32.
Nxf6 {[%clk 0:00:15.6]} 32... Kxf6 {[%clk 0:00:17]} 33. Rxc6 {[%clk 0:00:15.8]}
33... Nd5 {[%clk 0:00:17.1]} 34. g3 {[%clk 0:00:14.1]} 34... h5 {[%clk
0:00:16.5]} 35. h4 {[%clk 0:00:12.7]} 35... Kf5 {[%clk 0:00:14.1]} 36. Kg2
{[%clk 0:00:12.3]} 36... Rd8 {[%clk 0:00:13.7]} 37. Be3 {[%clk 0:00:10.9]} 37...
Nxb4 {[%clk 0:00:12.6]} 38. Rc5+ {[%clk 0:00:08.8]} 38... Nd5 {[%clk 0:00:12.5]}
39. Rxb5 {[%clk 0:00:08.3]} 39... a6 {[%clk 0:00:12.1]} 40. Rc5 {[%clk
0:00:07.4]} 40... Ke4 {[%clk 0:00:11.9]} 41. Bg5 {[%clk 0:00:06]} 41... Rb8
{[%clk 0:00:10.4]} 42. Rc6 {[%clk 0:00:06.3]} 42... Kf5 {[%clk 0:00:10]} 43.
Rxa6 {[%clk 0:00:05.1]} 43... Rb2 {[%clk 0:00:10.2]} 44. Rd6 {[%clk 0:00:03.3]}
44... Ra2 {[%clk 0:00:09.1]} 45. a6 {[%clk 0:00:03.2]} 45... Ra4 {[%clk
0:00:08.9]} 46. Be3 {[%clk 0:00:03]} 46... Nxe3+ {[%clk 0:00:08.2]} 47. fxe3
{[%clk 0:00:03.9]} 47... Ra2+ {[%clk 0:00:07.8]} 48. Kf3 {[%clk 0:00:04.4]}
48... Ra3 {[%clk 0:00:08.1]} 49. Rb6 {[%clk 0:00:04.3]} 49... e5 {[%clk
0:00:08.3]} 50. Rc6 {[%clk 0:00:03.7]} 50... Ra2 {[%clk 0:00:08.5]} 51. e4#
{[%clk 0:00:03.7]} 1-0